[Event "MČR v rapid šachu družstev 2019"]
[Site "Teplice, Czech Republic"]
[Date "2019.09.15"]
[Round "4.10"]
[White "Vokoun, Jan"]
[Black "Zeman, Matyas"]
[Result "0-1"]
[TimeControl "15 min. + 5s"]
[WhiteElo "2119"]
[BlackElo "2247"]

1. d4 {[%clk 00:15:08]} {[%emt 00:00:02]} e6 {[%clk 00:15:06]} {[%emt
00:00:05]} 2. c4 {[%clk 00:15:02]} {[%emt 00:00:11]} f5 {[%clk 00:15:10]}
{[%emt 00:00:02]} 3. g3 {[%clk 00:14:51]} {[%emt 00:00:15]} Nf6 {[%clk
00:15:13]} {[%emt 00:00:01]} 4. Bg2 {[%clk 00:14:55]} {[%emt 00:00:01]} Be7
{[%clk 00:15:14]} {[%emt 00:00:04]} 5. Nf3 {[%clk 00:14:48]} {[%emt 00:00:12]}
O-O {[%clk 00:15:17]} {[%emt 00:00:02]} 6. d5 {[%clk 00:14:25]} {[%emt
00:00:28]} Bb4+ {[%clk 00:13:30]} {[%emt 00:01:52]} 7. Bd2 {[%clk 00:14:04]}
{[%emt 00:00:26]} Bxd2+ {[%clk 00:13:33]} {[%emt 00:00:02]} 8. Qxd2 {[%clk
00:14:08]} {[%emt 00:00:01]} Ne4 {[%clk 00:13:36]} {[%emt 00:00:01]} 9. Qd4
{[%clk 00:12:06]} {[%emt 00:02:06]} d6 {[%clk 00:13:22]} {[%emt 00:00:20]} 10.
dxe6 {[%clk 00:11:59]} {[%emt 00:00:12]} Bxe6 {[%clk 00:13:25]} {[%emt
00:00:02]} 11. b3 {[%clk 00:10:09]} {[%emt 00:01:55]} Nc6 {[%clk 00:13:27]}
{[%emt 00:00:03]} 12. Qb2 {[%clk 00:10:13]} {[%emt 00:00:01]} Qe7 {[%clk
00:08:20]} {[%emt 00:05:12]} 13. O-O {[%clk 00:10:02]} {[%emt 00:00:16]} Rae8
{[%clk 00:08:24]} {[%emt 00:00:01]} 14. e3 {[%clk 00:09:35]} {[%emt 00:00:32]}
Bc8 {[%clk 00:08:22]} {[%emt 00:00:06]} 15. Na3 {[%clk 00:07:59]} {[%emt
00:01:41]} Ne5 {[%clk 00:08:17]} {[%emt 00:00:11]} 16. Rad1 {[%clk 00:07:04]}
{[%emt 00:00:59]} Kh8 {[%clk 00:06:55]} {[%emt 00:01:28]} 17. Nxe5 {[%clk
00:06:05]} {[%emt 00:01:04]} dxe5 {[%clk 00:06:59]} {[%emt 00:00:01]} 18. Nb5
{[%clk 00:05:11]} {[%emt 00:00:58]} a6 {[%clk 00:05:49]} {[%emt 00:01:15]} 19.
Nc3 {[%clk 00:05:11]} {[%emt 00:00:06]} Nf6 {[%clk 00:05:14]} {[%emt 00:00:40]}
20. Nd5 {[%clk 00:05:06]} {[%emt 00:00:10]} Nxd5 {[%clk 00:05:17]} {[%emt
00:00:01]} 21. cxd5 {[%clk 00:04:36]} {[%emt 00:00:35]} f4 {[%clk 00:05:17]}
{[%emt 00:00:05]} 22. exf4 {[%clk 00:03:43]} {[%emt 00:00:58]} exf4 {[%clk
00:05:22]} 23. Qd2 {[%clk 00:03:47]} f3 {[%clk 00:05:24]} {[%emt 00:00:03]} 24.
Rfe1 {[%clk 00:03:51]} {[%emt 00:00:01]} Qf7 {[%clk 00:05:29]} 25. Bf1 {[%clk
00:03:53]} {[%emt 00:00:03]} Rxe1 {[%clk 00:04:59]} {[%emt 00:00:35]} 26. Rxe1
{[%clk 00:03:55]} {[%emt 00:00:03]} Rd8 {[%clk 00:05:02]} {[%emt 00:00:01]} 27.
Qe3 {[%clk 00:03:22]} {[%emt 00:00:38]} Qxd5 {[%clk 00:03:35]} {[%emt
00:01:32]} 28. Bc4 {[%clk 00:02:43]} {[%emt 00:00:44]} Qd6 {[%clk 00:03:39]} 29.
Qxf3 {[%clk 00:02:35]} {[%emt 00:00:15]} Rf8 {[%clk 00:03:14]} {[%emt
00:00:30]} 30. Qe3 {[%clk 00:02:27]} {[%emt 00:00:13]} b5 {[%clk 00:02:54]}
{[%emt 00:00:25]} 31. Bf1 {[%clk 00:02:29]} {[%emt 00:00:03]} Bd7 {[%clk
00:01:00]} {[%emt 00:02:00]} 32. Qe7 {[%clk 00:01:31]} {[%emt 00:01:03]} Qxe7
{[%clk 00:00:18]} {[%emt 00:00:47]} 33. Rxe7 Rd8 34. Bg2 {[%clk 00:01:17]}
{[%emt 00:00:24]} c5 {[%clk 00:00:24]} {[%emt 00:00:03]} 35. f4 {[%clk
00:01:12]} {[%emt 00:00:10]} c4 {[%clk 00:00:21]} {[%emt 00:00:08]} 36. bxc4
{[%clk 00:01:14]} {[%emt 00:00:02]} bxc4 {[%clk 00:00:26]} 37. Re3 {[%clk
00:01:16]} {[%emt 00:00:03]} Bb5 {[%clk 00:00:27]} {[%emt 00:00:04]} 38. Rc3
{[%clk 00:01:17]} {[%emt 00:00:04]} Rd1+ {[%clk 00:00:25]} {[%emt 00:00:01]} 39.
Kf2 {[%clk 00:01:21]} {[%emt 00:00:02]} Rd2+ {[%clk 00:00:33]} {[%emt
00:00:02]} 40. Kf1 {[%clk 00:01:25]} {[%emt 00:00:01]} Rxa2 {[%clk 00:00:36]}
{[%emt 00:00:02]} 41. g4 {[%clk 00:01:21]} {[%emt 00:00:08]} g6 {[%clk
00:00:32]} {[%emt 00:00:09]} 42. h4 {[%clk 00:01:26]} Kg7 {[%clk 00:00:36]}
{[%emt 00:00:02]} 43. Bd5 {[%clk 00:01:09]} {[%emt 00:00:22]} Rh2 {[%clk
00:00:22]} {[%emt 00:00:19]} 44. Bxc4 {[%clk 00:00:58]} {[%emt 00:00:16]} Rxh4
{[%clk 00:00:26]} {[%emt 00:00:01]} 45. Bxb5 {[%clk 00:00:54]} {[%emt
00:00:09]} axb5 {[%clk 00:00:30]} {[%emt 00:00:01]} 46. Rg3 {[%clk 00:00:32]}
{[%emt 00:00:27]} Rh1+ {[%clk 00:00:35]} 47. Kg2 {[%clk 00:00:33]} {[%emt
00:00:04]} Rb1 {[%clk 00:00:36]} {[%emt 00:00:04]} 48. Rc3 {[%clk 00:00:35]}
{[%emt 00:00:03]} h5 {[%clk 00:00:17]} {[%emt 00:00:24]} 49. gxh5 {[%clk
00:00:35]} {[%emt 00:00:04]} gxh5 {[%clk 00:00:22]} 50. Rc6 {[%clk 00:00:39]}
{[%emt 00:00:02]} b4 {[%clk 00:00:23]} {[%emt 00:00:03]} 51. Rb6 {[%clk
00:00:26]} {[%emt 00:00:18]} b3 {[%clk 00:00:26]} {[%emt 00:00:02]} 52. Kh2
{[%clk 00:00:28]} {[%emt 00:00:04]} Kf7 {[%clk 00:00:27]} {[%emt 00:00:04]} 53.
Kg2 {[%clk 00:00:29]} {[%emt 00:00:04]} Ke7 {[%clk 00:00:28]} {[%emt 00:00:03]}
54. Kh2 {[%clk 00:00:27]} {[%emt 00:00:07]} Kd7 {[%clk 00:00:32]} {[%emt
00:00:01]} 55. f5 {[%emt 00:00:02]} Kc7 {[%clk 00:00:35]} {[%emt 00:00:01]} 56.
Rb4 {[%clk 00:00:28]} {[%emt 00:00:06]} Kd6 {[%clk 00:00:33]} {[%emt 00:00:08]}
57. f6 {[%clk 00:00:26]} {[%emt 00:00:07]} Ke6 {[%clk 00:00:08]} {[%emt
00:00:30]} 58. Rf4 {[%clk 00:00:30]} {[%emt 00:00:01]} Kf7 {[%clk 00:00:11]}
{[%emt 00:00:03]} 59. Rf3 {[%clk 00:00:25]} {[%emt 00:00:09]} h4 {[%clk
00:00:10]} {[%emt 00:00:06]} 60. Rf4 {[%clk 00:00:20]} {[%emt 00:00:10]} h3
{[%clk 00:00:10]} {[%emt 00:00:06]} 61. Rb4 {[%emt 00:00:49]} Ke6 62. Rf4
{[%emt 00:00:03]} Kf7 63. Rf3 b2 {[%emt 00:00:04]} 64. Rb3 {[%emt 00:00:04]}
Kxf6 {[%emt 00:00:02]} 65. Rb8 {[%clk 00:00:00]} {[%emt 00:00:07]} 0-1

[Event "MČR v rapid šachu družstev 2019"]
[Site "Teplice, Czech Republic"]
[Date "2019.09.15"]
[Round "4.11"]
[White "Skacelik, Petr"]
[Black "Postupa, Martin"]
[Result "0-1"]
[TimeControl "15 min. + 5s"]
[WhiteElo "2096"]
[BlackElo "1950"]

1. d4 {[%clk 00:15:08]} {[%emt 00:00:02]} d5 {[%clk 00:15:09]} {[%emt
00:00:01]} 2. c4 {[%clk 00:15:12]} {[%emt 00:00:01]} e6 {[%clk 00:15:13]} 3.
Nc3 {[%clk 00:15:16]} {[%emt 00:00:01]} Nf6 {[%clk 00:15:17]} {[%emt 00:00:01]}
4. Bg5 {[%clk 00:15:20]} Bb4 {[%clk 00:15:21]} {[%emt 00:00:02]} 5. e3 {[%clk
00:15:16]} {[%emt 00:00:09]} c6 {[%clk 00:15:20]} {[%emt 00:00:06]} 6. Qc2
{[%clk 00:15:11]} {[%emt 00:00:10]} h6 {[%clk 00:15:21]} {[%emt 00:00:05]} 7.
Bh4 {[%clk 00:15:15]} Nbd7 {[%clk 00:15:15]} {[%emt 00:00:11]} 8. Bd3 {[%clk
00:15:13]} {[%emt 00:00:07]} Qa5 {[%clk 00:15:16]} {[%emt 00:00:04]} 9. Nge2
{[%clk 00:15:06]} {[%emt 00:00:12]} Bd6 {[%clk 00:14:56]} {[%emt 00:00:25]} 10.
O-O {[%clk 00:14:20]} {[%emt 00:00:50]} O-O {[%clk 00:14:49]} {[%emt 00:00:12]}
11. a3 {[%clk 00:14:23]} {[%emt 00:00:03]} dxc4 {[%clk 00:14:28]} {[%emt
00:00:27]} 12. Bxc4 {[%clk 00:14:26]} {[%emt 00:00:02]} Qh5 {[%clk 00:14:31]}
{[%emt 00:00:02]} 13. Bg3 {[%clk 00:14:21]} {[%emt 00:00:09]} Bxg3 {[%clk
00:14:21]} {[%emt 00:00:15]} 14. Nxg3 {[%clk 00:14:24]} {[%emt 00:00:02]} Qa5
{[%clk 00:14:24]} {[%emt 00:00:02]} 15. b4 {[%clk 00:14:18]} {[%emt 00:00:12]}
Qd8 {[%clk 00:14:24]} {[%emt 00:00:04]} 16. f4 {[%clk 00:13:58]} {[%emt
00:00:25]} Nb6 {[%clk 00:14:22]} {[%emt 00:00:07]} 17. Bb3 {[%clk 00:13:57]}
{[%emt 00:00:06]} Nbd5 {[%clk 00:14:22]} {[%emt 00:00:06]} 18. Nxd5 {[%clk
00:13:54]} {[%emt 00:00:08]} exd5 {[%clk 00:14:26]} {[%emt 00:00:01]} 19. Qd3
{[%clk 00:13:41]} {[%emt 00:00:17]} Re8 {[%clk 00:14:13]} {[%emt 00:00:18]} 20.
Bc2 {[%clk 00:13:43]} {[%emt 00:00:03]} a5 {[%clk 00:14:03]} {[%emt 00:00:15]}
21. Rae1 {[%clk 00:13:19]} {[%emt 00:00:30]} axb4 {[%clk 00:14:05]} {[%emt
00:00:04]} 22. axb4 {[%clk 00:13:22]} {[%emt 00:00:01]} Qb6 {[%clk 00:14:08]}
{[%emt 00:00:01]} 23. Rb1 {[%clk 00:13:12]} {[%emt 00:00:15]} Qa7 {[%clk
00:13:19]} {[%emt 00:00:55]} 24. h3 {[%clk 00:13:01]} {[%emt 00:00:16]} Qa3
{[%clk 00:13:22]} {[%emt 00:00:01]} 25. Rb3 {[%clk 00:13:05]} {[%emt 00:00:02]}
Qa6 {[%clk 00:12:54]} {[%emt 00:00:33]} 26. Qc3 {[%clk 00:12:53]} {[%emt
00:00:17]} Qb5 {[%clk 00:12:26]} {[%emt 00:00:33]} 27. Bd3 {[%clk 00:12:54]}
{[%emt 00:00:04]} Qb6 {[%clk 00:12:26]} {[%emt 00:00:04]} 28. Re1 {[%clk
00:12:42]} {[%emt 00:00:18]} Ra2 {[%clk 00:11:55]} {[%emt 00:00:36]} 29. b5
{[%clk 00:11:57]} {[%emt 00:00:50]} Qa5 {[%clk 00:11:19]} {[%emt 00:00:41]} 30.
Qxa5 {[%clk 00:11:56]} {[%emt 00:00:06]} Rxa5 {[%clk 00:11:22]} {[%emt
00:00:02]} 31. bxc6 {[%clk 00:12:00]} {[%emt 00:00:01]} bxc6 {[%clk 00:11:26]}
32. Rc3 {[%clk 00:12:04]} {[%emt 00:00:02]} Bd7 {[%clk 00:11:25]} {[%emt
00:00:06]} 33. Bf5 {[%clk 00:12:08]} Bxf5 {[%clk 00:10:21]} {[%emt 00:01:09]}
34. Nxf5 {[%clk 00:12:12]} {[%emt 00:00:01]} Re6 {[%clk 00:10:25]} {[%emt
00:00:01]} 35. Rec1 {[%clk 00:11:59]} {[%emt 00:00:18]} Ra6 {[%clk 00:10:23]}
{[%emt 00:00:07]} 36. Ng3 {[%clk 00:11:56]} {[%emt 00:00:06]} g6 {[%clk
00:10:14]} {[%emt 00:00:14]} 37. R1c2 {[%clk 00:11:58]} {[%emt 00:00:03]} Kg7
{[%clk 00:10:00]} {[%emt 00:00:20]} 38. f5 {[%clk 00:11:10]} {[%emt 00:00:53]}
Rd6 {[%clk 00:10:03]} {[%emt 00:00:02]} 39. fxg6 {[%clk 00:11:07]} {[%emt
00:00:08]} fxg6 {[%clk 00:10:06]} {[%emt 00:00:02]} 40. Rb3 {[%clk 00:10:49]}
{[%emt 00:00:23]} h5 {[%clk 00:09:54]} {[%emt 00:00:17]} 41. Ne2 {[%clk
00:10:30]} {[%emt 00:00:24]} Ne4 {[%clk 00:09:56]} {[%emt 00:00:03]} 42. Nc3
{[%clk 00:10:26]} {[%emt 00:00:10]} Ng3 {[%clk 00:09:02]} {[%emt 00:00:59]} 43.
Ne2 {[%clk 00:09:23]} {[%emt 00:01:08]} Ra1+ {[%clk 00:08:35]} {[%emt
00:00:32]} 44. Nc1 {[%clk 00:07:18]} {[%emt 00:02:11]} Rf6 {[%clk 00:08:24]}
{[%emt 00:00:15]} 45. h4 {[%clk 00:06:51]} {[%emt 00:00:32]} Rf1+ {[%clk
00:07:58]} {[%emt 00:00:31]} 46. Kh2 {[%clk 00:06:51]} {[%emt 00:00:05]} Ne4
{[%emt 00:01:22]} 0-1

[Event "MČR v rapid šachu družstev 2019"]
[Site "Teplice, Czech Republic"]
[Date "2019.09.15"]
[Round "4.12"]
[White "Krouzel, Jaroslav"]
[Black "Vavra, Michal"]
[Result "1/2-1/2"]
[TimeControl "15 min. + 5s"]
[WhiteElo "2068"]
[BlackElo "2028"]

1. d4 {[%clk 00:15:02]} {[%emt 00:00:06]} d5 {[%clk 00:15:05]} {[%emt
00:00:05]} 2. Nf3 {[%clk 00:15:03]} {[%emt 00:00:04]} Nf6 {[%clk 00:15:07]}
{[%emt 00:00:04]} 3. Bf4 {[%clk 00:15:04]} {[%emt 00:00:05]} g6 {[%clk
00:15:07]} {[%emt 00:00:05]} 4. e3 {[%clk 00:15:04]} {[%emt 00:00:05]} Bg7
{[%clk 00:15:08]} {[%emt 00:00:04]} 5. c4 {[%clk 00:15:05]} {[%emt 00:00:03]}
c6 {[%clk 00:14:59]} {[%emt 00:00:14]} 6. Nc3 {[%clk 00:15:05]} {[%emt
00:00:06]} O-O {[%clk 00:14:58]} {[%emt 00:00:05]} 7. Bd3 {[%clk 00:15:02]}
{[%emt 00:00:09]} Nbd7 {[%clk 00:14:27]} {[%emt 00:00:35]} 8. h3 {[%clk
00:13:56]} {[%emt 00:01:12]} dxc4 {[%clk 00:14:18]} {[%emt 00:00:14]} 9. Bxc4
{[%clk 00:13:52]} {[%emt 00:00:09]} Nb6 {[%clk 00:14:20]} {[%emt 00:00:02]} 10.
Bd3 {[%clk 00:13:36]} {[%emt 00:00:21]} Nbd5 {[%clk 00:14:18]} {[%emt
00:00:06]} 11. Bh2 {[%clk 00:12:24]} {[%emt 00:01:17]} Qa5 {[%clk 00:13:53]}
{[%emt 00:00:29]} 12. Qd2 {[%clk 00:11:37]} {[%emt 00:00:53]} h6 {[%clk
00:12:23]} {[%emt 00:01:36]} 13. O-O {[%clk 00:11:12]} {[%emt 00:00:31]} Be6
{[%clk 00:11:22]} {[%emt 00:01:04]} 14. e4 {[%clk 00:09:53]} {[%emt 00:01:25]}
Nxc3 {[%clk 00:11:16]} {[%emt 00:00:11]} 15. bxc3 {[%clk 00:09:57]} {[%emt
00:00:02]} Rfd8 {[%clk 00:10:21]} {[%emt 00:00:59]} 16. Qc2 {[%clk 00:09:34]}
{[%emt 00:00:29]} Qh5 {[%clk 00:09:46]} {[%emt 00:00:39]} 17. Ne5 {[%clk
00:08:18]} {[%emt 00:01:21]} g5 {[%clk 00:07:36]} {[%emt 00:02:15]} 18. Be2
{[%clk 00:05:49]} {[%emt 00:02:35]} g4 {[%clk 00:07:35]} {[%emt 00:00:06]} 19.
f4 {[%clk 00:05:15]} {[%emt 00:00:40]} Qh4 {[%clk 00:06:40]} {[%emt 00:01:00]}
20. f5 {[%clk 00:04:53]} {[%emt 00:00:27]} g3 {[%clk 00:06:08]} {[%emt
00:00:37]} 21. fxe6 {[%clk 00:04:49]} {[%emt 00:00:09]} gxh2+ {[%clk 00:06:03]}
{[%emt 00:00:10]} 22. Kxh2 {[%clk 00:04:50]} {[%emt 00:00:05]} fxe6 {[%clk
00:05:54]} {[%emt 00:00:13]} 23. Bd3 {[%clk 00:03:01]} {[%emt 00:01:54]} Rf8
{[%emt 00:01:34]} 24. Ng6 {[%emt 00:00:03]} Ng4+ 25. Kh1 Rxf1+ 26. Rxf1 Qh5
{[%emt 00:00:02]} 27. Nxe7+ {[%emt 00:00:01]} Kh7 {[%emt 00:00:06]} 28. Nf5
{[%emt 00:00:12]} 1/2-1/2

[Event "MČR v rapid šachu družstev 2019"]
[Site "Teplice, Czech Republic"]
[Date "2019.09.15"]
[Round "4.13"]
[White "Kourousis, Epaminondas"]
[Black "Trepka, Jan"]
[Result "1-0"]
[TimeControl "15 min. + 5s"]
[WhiteElo "2388"]
[BlackElo "2209"]

1. Nf3 {[%clk 00:15:07]} {[%emt 00:00:01]} Nf6 {[%clk 00:15:05]} {[%emt
00:00:05]} 2. g3 {[%clk 00:15:06]} {[%emt 00:00:06]} d5 {[%clk 00:15:05]}
{[%emt 00:00:06]} 3. Bg2 {[%clk 00:15:08]} {[%emt 00:00:03]} e6 {[%clk
00:15:05]} {[%emt 00:00:05]} 4. O-O {[%clk 00:15:08]} {[%emt 00:00:04]} Be7
{[%clk 00:15:09]} {[%emt 00:00:03]} 5. d4 {[%clk 00:15:02]} {[%emt 00:00:10]}
O-O {[%clk 00:15:11]} {[%emt 00:00:03]} 6. c4 {[%clk 00:15:04]} {[%emt
00:00:04]} b6 {[%clk 00:15:05]} {[%emt 00:00:10]} 7. cxd5 {[%clk 00:15:05]}
{[%emt 00:00:04]} exd5 {[%clk 00:15:07]} {[%emt 00:00:04]} 8. b3 {[%clk
00:14:44]} {[%emt 00:00:25]} Bb7 {[%clk 00:15:02]} {[%emt 00:00:10]} 9. Bb2
{[%clk 00:14:47]} {[%emt 00:00:01]} Nbd7 {[%clk 00:14:37]} {[%emt 00:00:30]} 10.
Nbd2 {[%clk 00:14:35]} {[%emt 00:00:16]} c5 {[%clk 00:14:35]} {[%emt 00:00:08]}
11. Rc1 {[%clk 00:14:30]} {[%emt 00:00:10]} Rc8 {[%clk 00:14:28]} {[%emt
00:00:12]} 12. dxc5 {[%clk 00:13:53]} {[%emt 00:00:42]} bxc5 {[%clk 00:14:25]}
{[%emt 00:00:07]} 13. Ne5 {[%clk 00:13:31]} {[%emt 00:00:27]} Nxe5 {[%clk
00:13:54]} {[%emt 00:00:36]} 14. Bxe5 {[%clk 00:13:34]} {[%emt 00:00:02]} Qb6
{[%clk 00:13:43]} {[%emt 00:00:16]} 15. Qc2 {[%clk 00:12:53]} {[%emt 00:00:46]}
Rfd8 {[%clk 00:12:49]} {[%emt 00:00:58]} 16. Rfd1 {[%clk 00:11:47]} {[%emt
00:01:10]} Qe6 {[%clk 00:11:32]} {[%emt 00:01:23]} 17. Bxf6 {[%clk 00:10:28]}
{[%emt 00:01:24]} Bxf6 {[%clk 00:11:21]} {[%emt 00:00:16]} 18. e3 {[%clk
00:09:34]} {[%emt 00:00:59]} Ba6 {[%clk 00:10:16]} {[%emt 00:01:10]} 19. e4
{[%clk 00:07:26]} {[%emt 00:02:13]} dxe4 {[%clk 00:08:06]} {[%emt 00:02:15]} 20.
Nxe4 {[%clk 00:06:03]} {[%emt 00:01:28]} Rxd1+ {[%clk 00:05:56]} {[%emt
00:02:14]} 21. Rxd1 {[%clk 00:04:04]} {[%emt 00:02:04]} c4 {[%clk 00:05:46]}
{[%emt 00:00:15]} 22. Nxf6+ {[%clk 00:01:45]} {[%emt 00:02:24]} Qxf6 {[%clk
00:04:53]} {[%emt 00:00:58]} 23. bxc4 {[%clk 00:01:37]} {[%emt 00:00:13]} Bxc4
{[%clk 00:03:22]} {[%emt 00:01:37]} 24. Bb7 {[%clk 00:01:16]} {[%emt 00:00:25]}
Rc5 {[%clk 00:00:22]} {[%emt 00:03:05]} 25. Bd5 {[%clk 00:00:43]} {[%emt
00:00:38]} Bxd5 {[%clk 00:00:24]} {[%emt 00:00:03]} 26. Qxc5 {[%clk 00:00:46]}
{[%emt 00:00:02]} Be6 {[%clk 00:00:28]} 27. Qd4 {[%clk 00:00:37]} {[%emt
00:00:13]} Qxd4 {[%clk 00:00:17]} {[%emt 00:00:18]} 28. Rxd4 {[%clk 00:00:40]}
{[%emt 00:00:02]} Kf8 {[%clk 00:00:22]} 29. Ra4 {[%clk 00:00:42]} {[%emt
00:00:03]} Ke8 {[%emt 00:00:07]} 1-0

[Event "MČR v rapid šachu družstev 2019"]
[Site "Teplice, Czech Republic"]
[Date "2019.09.15"]
[Round "4.14"]
[White "Ruzicka, Ales"]
[Black "Burdalev, Kirill"]
[Result "0-1"]
[TimeControl "15 min. + 5s"]
[WhiteElo "2119"]
[BlackElo "2336"]

1. e4 {[%clk 00:15:07]} {[%emt 00:00:02]} Nf6 {[%clk 00:15:09]} {[%emt
00:00:01]} 2. e5 {[%clk 00:15:05]} {[%emt 00:00:06]} Nd5 {[%clk 00:15:13]}
{[%emt 00:00:01]} 3. d4 {[%clk 00:15:05]} {[%emt 00:00:05]} d6 {[%clk
00:15:17]} 4. exd6 {[%clk 00:15:05]} {[%emt 00:00:05]} exd6 {[%clk 00:15:12]}
{[%emt 00:00:10]} 5. h3 {[%clk 00:15:08]} {[%emt 00:00:02]} Be7 {[%clk
00:15:16]} {[%emt 00:00:01]} 6. Nf3 {[%clk 00:14:56]} {[%emt 00:00:17]} Bf5
{[%clk 00:15:08]} {[%emt 00:00:13]} 7. Bd3 {[%clk 00:14:57]} {[%emt 00:00:03]}
Bg6 {[%clk 00:15:10]} {[%emt 00:00:04]} 8. O-O {[%clk 00:14:37]} {[%emt
00:00:26]} O-O {[%clk 00:15:10]} {[%emt 00:00:04]} 9. c4 {[%clk 00:14:01]}
{[%emt 00:00:41]} Nb6 {[%clk 00:15:13]} 10. Nc3 {[%clk 00:13:09]} {[%emt
00:00:58]} Bf6 {[%clk 00:15:05]} {[%emt 00:00:13]} 11. Re1 {[%clk 00:12:25]}
{[%emt 00:00:50]} Nc6 {[%clk 00:15:06]} {[%emt 00:00:04]} 12. d5 {[%clk
00:11:18]} {[%emt 00:01:12]} Na5 {[%clk 00:15:10]} {[%emt 00:00:01]} 13. Ne4
{[%clk 00:09:44]} {[%emt 00:01:38]} Naxc4 {[%clk 00:14:11]} {[%emt 00:01:04]}
14. Qb3 {[%clk 00:08:56]} {[%emt 00:00:54]} Ne5 {[%clk 00:13:20]} {[%emt
00:00:56]} 15. Nxf6+ {[%clk 00:07:41]} {[%emt 00:01:19]} Qxf6 {[%clk 00:13:19]}
{[%emt 00:00:07]} 16. Nxe5 {[%clk 00:07:30]} {[%emt 00:00:16]} dxe5 {[%clk
00:13:20]} {[%emt 00:00:04]} 17. Be3 {[%clk 00:07:03]} {[%emt 00:00:31]} Bxd3
{[%clk 00:11:35]} {[%emt 00:01:50]} 18. Qxd3 {[%clk 00:07:06]} {[%emt
00:00:03]} Qd6 {[%clk 00:11:37]} {[%emt 00:00:03]} 19. Red1 {[%clk 00:06:57]}
{[%emt 00:00:14]} Rfd8 {[%clk 00:11:19]} {[%emt 00:00:23]} 20. Bxb6 {[%clk
00:06:37]} {[%emt 00:00:26]} axb6 {[%clk 00:11:21]} {[%emt 00:00:03]} 21. a3
{[%clk 00:06:36]} {[%emt 00:00:05]} c6 {[%clk 00:11:15]} {[%emt 00:00:11]} 22.
Rac1 {[%clk 00:05:05]} {[%emt 00:01:37]} cxd5 {[%clk 00:11:03]} {[%emt
00:00:17]} 23. Rc2 {[%clk 00:04:59]} {[%emt 00:00:10]} g6 {[%clk 00:10:43]}
{[%emt 00:00:25]} 24. Rdc1 {[%clk 00:05:02]} {[%emt 00:00:03]} Rd7 {[%clk
00:10:40]} {[%emt 00:00:07]} 25. f4 {[%clk 00:04:10]} {[%emt 00:00:57]} exf4
{[%clk 00:10:18]} {[%emt 00:00:28]} 26. Qd4 {[%clk 00:04:13]} {[%emt 00:00:02]}
Rad8 {[%clk 00:09:50]} {[%emt 00:00:33]} 27. Rf2 {[%clk 00:04:06]} {[%emt
00:00:12]} Rc7 {[%clk 00:09:23]} {[%emt 00:00:32]} 28. Rcf1 {[%clk 00:03:35]}
{[%emt 00:00:36]} Rc4 {[%clk 00:09:25]} {[%emt 00:00:03]} 29. Qd2 {[%clk
00:03:21]} {[%emt 00:00:19]} Qc5 {[%clk 00:09:29]} {[%emt 00:00:02]} 30. Kh1
{[%clk 00:03:15]} {[%emt 00:00:10]} Qe3 {[%clk 00:09:13]} {[%emt 00:00:21]} 0-1

[Event "MČR v rapid šachu družstev 2019"]
[Site "Teplice, Czech Republic"]
[Date "2019.09.15"]
[Round "4.15"]
[White "Pribyl, Josef"]
[Black "Meszaros, Ludek"]
[Result "1-0"]
[TimeControl "15 min. + 5s"]
[WhiteElo "2285"]
[BlackElo "2059"]

1. c4 {[%emt 00:02:19]} e5 {[%emt 00:00:01]} 2. Nc3 {[%emt 00:00:02]} Nc6
{[%emt 00:00:11]} 3. g3 d6 {[%emt 00:00:03]} 4. Bg2 {[%emt 00:00:01]} Be6
{[%emt 00:00:06]} 5. b3 {[%emt 00:00:03]} Qd7 {[%emt 00:00:09]} 6. Nf3 {[%emt
00:00:17]} h6 {[%emt 00:00:08]} 7. d4 {[%emt 00:00:08]} Bh3 {[%emt 00:00:22]} 8.
Bxh3 {[%emt 00:00:06]} Qxh3 {[%emt 00:00:01]} 9. Nd5 {[%emt 00:00:23]} O-O-O
{[%emt 00:00:19]} 10. Bb2 {[%emt 00:00:18]} e4 {[%emt 00:00:36]} 11. Nd2 {[%emt
00:01:07]} Nge7 {[%emt 00:00:13]} 12. Nf4 {[%emt 00:00:12]} Qf5 {[%emt
00:00:08]} 13. h4 {[%emt 00:00:26]} Ng6 {[%emt 00:00:36]} 14. Nd5 {[%emt
00:00:19]} Nge7 {[%emt 00:01:01]} 15. Ne3 {[%emt 00:00:03]} Qh7 {[%emt
00:00:35]} 16. d5 {[%emt 00:01:08]} Ne5 {[%emt 00:00:44]} 17. Qc2 {[%emt
00:00:03]} f5 {[%emt 00:00:15]} 18. c5 {[%emt 00:00:28]} Kb8 {[%emt 00:00:49]}
19. Rc1 {[%emt 00:00:24]} Nc8 {[%emt 00:00:38]} 20. c6 {[%emt 00:00:12]} g6
{[%emt 00:00:44]} 21. cxb7 {[%emt 00:00:21]} Nb6 {[%emt 00:00:12]} 22. Ndc4
{[%emt 00:00:16]} Nbxc4 {[%emt 00:02:50]} 23. Nxc4 {[%emt 00:00:30]} Nxc4
{[%emt 00:02:10]} 24. Qxc4 {[%emt 00:00:12]} Rg8 {[%emt 00:01:32]} 25. Bd4
{[%emt 00:00:02]} Kxb7 {[%emt 00:00:23]} 26. Qc6+ {[%emt 00:00:08]} Kb8 {[%emt
00:00:19]} 27. Bxa7+ {[%emt 00:00:38]} Kc8 {[%emt 00:00:20]} 28. Bb6 {[%emt
00:00:37]} Rg7 {[%emt 00:00:08]} 29. Bxc7 {[%emt 00:00:16]} Rxc7 {[%emt
00:00:19]} 30. Qa8+ {[%emt 00:00:03]} Kd7 {[%emt 00:00:06]} 31. Rxc7+ {[%emt
00:00:02]} 1-0